[Event "15th Tashkent Open Agzamov 2022"]
[Site "Tashkent"]
[Date "2022.05.07"]
[Round "5.7"]
[White "Romanov, Evgeny"]
[Black "Aditya Mittal"]
[Result "1-0"]
[ECO "B50"]
[WhiteElo "2573"]
[BlackElo "2490"]
[Annotator "TA"]
[PlyCount "99"]
[EventDate "2022.05.05"]
[EventType "swiss"]
[EventCountry "UZB"]
[SourceTitle "playchess.com"]
[Source "ChessBase"]
[SourceQuality "1"]
[TimeControl "5400+30"]

{[%evp 17,99,-13,-14,-10,-13,-9,16,19,23,18,11,0,27,30,73,87,64,59,129,141,129,129,123,125,129,100,93,0,151,145,166,162,173,93,120,111,116,106,76,24,20,22,22,25,22,27,26,27,56,12,33,40,64,50,124,121,125,131,167,167,256,265,556,456,456,456,456,449,449,449,442,442,442,434,410,401,382,325,305,262,552,537,486,463]} 1. e4 {[%emt 0:04:35]} c5 {[%emt 0:00:08]} 2. Nf3 {[%emt 0:00:13]} d6 {[%emt 0:00:04]} 3. Bc4 {[%emt 0:00:14]} Nf6 {[%emt 0:00:17]} 4. Qe2 {[%emt 0:00:10]} Nc6 {[%emt 0:00:33]} 5. h3 {[%emt 0:00:11]} g6 {[%emt 0:00:37]} 6. c3 {[%emt 0:01:25]} Bg7 {[%emt 0:02:32]} 7. Bb3 {[%emt 0:00:28]} O-O {[%emt 0:03:57]} 8. O-O {[%emt 0:00:10]} e5 {[%emt 0:01:56]} 9. d3 {[%emt 0:06:04]} h6 {[%emt 0:13:54]} 10. Be3 {[%emt 0:01:53] [#] B50: Sicilian: 2...d6, Miscellaneous.} b6 $146 {[%emt 0:00:45]} ({Predecessor:} 10... Qe7 11. Nbd2 Nh5 12. Rae1 Bd7 13. Bd5 Rae8 14. Kh2 Kh8 15. g3 Nf6 16. Bb3 Na5 17. c4 b5 {0-1 (41) Vistisen,L (2177)-Zhou,Y (2469) Leiden 2013}) 11. d4 {[%emt 0:03:49]} cxd4 {[%emt 0:07:41]} (11... Nxe4 12. Bxh6 $1 (12. Bd5 Bb7 $16) 12... Nf6 13. Bxg7 Kxg7 14. dxe5 Nxe5 15. Nxe5 dxe5 16. Qxe5 $11) 12. cxd4 {[%emt 0:00:29] The position is equal.} exd4 {[%emt 0:00:38]} 13. Nxd4 {[%emt 0:01:12]} Bb7 {[%emt 0:00:38]} 14. Nc3 {[%emt 0:03:33]} Na5 {[%emt 0:16:25]} 15. Bc2 {[%emt 0:06:17]} Re8 {[%emt 0:01:29]} 16. Rad1 {[%emt 0:07:32]} Qe7 {[%emt 0:09:49]} 17. Ndb5 {[%emt 0:08:09]} Rad8 {[%emt 0:14:40]} ({Better is} 17... Red8 $14) 18. Nxa7 $16 {[%emt 0:09:51] White is more active.} Nxe4 {[%emt 0:00:11]} 19. Bxb6 {[%emt 0:04:25]} Bxc3 {[%emt 0:03:57]} 20. bxc3 {[%emt 0:00:55]} Ra8 {[%emt 0:00:31]} 21. Rfe1 {[%emt 0:04:37] Black must now prevent f3.} ({Don't take} 21. Bxa5 $6 Rxa7 22. Bb4 Rxa2 $11) 21... Qg5 {[%emt 0:02:46]} 22. f3 {[%emt 0:04:13]} (22. Qg4 $1 $16 {[%cal Rg4g5] Qxg5 is the strong threat.} Nc4 23. Bd4) 22... Nf6 $2 {[%emt 0:10:10]} (22... Nc5 $1 $11 23. Qxe8+ Rxe8 24. Rxe8+ Kg7) 23. Qb5 {[%emt 0:07:04]} Rxe1+ {[%emt 0:05:01]} 24. Rxe1 {[%emt 0:00:08]} Qd2 {[%emt 0:00:05]} 25. Qe2 {[%emt 0:01:55]} ({White should try} 25. Re2 $1 $18 {[%cal Re2d2]} Qxc3 26. Qxa5 Qxa5 27. Bxa5) 25... Qxc3 {[%emt 0:01:01]} 26. Qf2 {[%emt 0:04:58] Hoping for Bd4.} Nd5 {[%emt 0:00:46] [#]} 27. Bd4 {[%emt 0:01:25] A strong pair of Bishops.} Qc4 {[%emt 0:00:13]} 28. Qd2 {[%emt 0:04:23]} (28. Kh2 $16) 28... Qb4 $1 $11 {[%emt 0:01:42]} 29. Qxb4 {[%emt 0:02:25]} (29. Qd1 {with more complications.} Nc4 30. Qb1 Qxb1 31. Rxb1 Na3 32. Rxb7 Nxc2 33. Bb2) 29... Nxb4 {[%emt 0:00:01]} 30. Bb1 {[%emt 0:00:01]} Nac6 {[%emt 0:01:19]} 31. Nxc6 {[%emt 0:00:14]} Bxc6 {[%emt 0:00:12]} 32. Re2 {[%emt 0:03:08]} Bd5 {[%emt 0:00:01]} 33. a3 {[%emt 0:00:43]} (33. Rb2 $5 {[%cal Rb2b4]} Nc6 34. Bf6 $16) 33... Nc6 {[%emt 0:00:01]} (33... Bc4 $5 {[%cal Rc4e2]} 34. Re3 Nd5 $11) 34. Bf6 {[%emt 0:00:21]} Ne5 {[%emt 0:01:50]} (34... Rxa3 $2 {is a self mate.} 35. Re8+ Kh7 36. Rh8#) 35. Rd2 {[%emt 0:03:01]} Be6 {[%emt 0:00:25] White stays focused until the end.} (35... Ra5 $14) 36. Rxd6 $16 {[%emt 0:01:17]} Nd7 {[%emt 0:00:54]} 37. Bd4 {[%emt 0:01:45]} Rxa3 {[%emt 0:00:26] [#]} 38. Bxg6 $1 {[%emt 0:00:19]} fxg6 {[%emt 0:00:40]} (38... Kf8 {keeps fighting.}) 39. Rxe6 {[%emt 0:00:02][%mdl 4096] Endgame KRB-KRN} Nf8 $2 {[%emt 0:01:09]} (39... Rd3) 40. Re7 {[%emt 0:02:23] Strongly threatening Rg7+.} Rd3 {[%emt 0:00:16]} 41. Rg7+ {[%emt 0:01:16]} Kh8 {[%emt 0:00:01] aiming for ...Rd1+.} 42. Bf6 {[%emt 0:00:20]} Rd6 {[%emt 0:00:57]} 43. Rxg6+ {[%emt 0:00:09]} Kh7 {[%emt 0:00:02]} 44. Rg7+ {[%emt 0:00:08]} Kh8 {[%emt 0:00:01]} 45. Be5 {[%emt 0:00:52]} Rd5 {[%emt 0:00:17]} 46. Re7+ {[%emt 0:00:30]} Kg8 {[%emt 0:00:01]} 47. Bb2 {[%emt 0:01:38] Threatens to win with Rg7+.} Nd7 {[%emt 0:01:04]} 48. Kh2 {[%emt 0:00:49]} Rd2 $2 {[%emt 0:00:35]} (48... Kf8 {was necessary.}) 49. Bc1 $18 {[%emt 0:00:26]} Rd6 {[%emt 0:00:21] [#]} 50. Bxh6 $1 {[%emt 0:00:28][%mdl 512] Weighted Error Value: White=0.15 (very precise) /Black=0.35} 1-0

[Event "15th Tashkent Open Agzamov 2022"]
[Site "Tashkent"]
[Date "2022.05.07"]
[Round "5.8"]
[White "Suleymenov, Alisher"]
[Black "Van Foreest, Lucas"]
[Result "1/2-1/2"]
[ECO "D20"]
[WhiteElo "2445"]
[BlackElo "2572"]
[Annotator "TA"]
[PlyCount "119"]
[EventDate "2022.05.05"]
[EventType "swiss"]
[EventCountry "UZB"]
[SourceTitle "playchess.com"]
[Source "ChessBase"]
[SourceQuality "1"]
[TimeControl "5400+30"]

{[%evp 11,119,28,43,35,34,38,28,32,45,38,33,26,24,21,31,13,10,12,17,6,8,0,0,0,3,0,0,4,4,5,34,2,37,26,33,13,75,78,82,84,93,95,97,97,97,97,97,97,98,89,98,98,116,116,116,85,119,119,126,109,126,126,126,126,126,126,126,109,126,126,124,0,100,100,100,100,100,64,100,100,100,100,100,92,100,88,100,100,100,100,100,46,95,95,100,0,100,99,100,0,0,0,0,0,0,0,0,0,0,0]} 1. d4 {[%emt 0:00:02]} d5 {[%emt 0:04:06]} 2. c4 {[%emt 0:00:08]} dxc4 {[%emt 0:00:11]} 3. e3 {[%emt 0:00:18]} e5 {[%emt 0:00:21]} 4. Bxc4 {[%emt 0:00:07]} exd4 {[%emt 0:00:04]} 5. exd4 {[%emt 0:00:04]} Bd6 {[%emt 0:00:17]} 6. Nf3 {[%emt 0:00:55]} Nf6 {[%emt 0:00:07]} 7. Qe2+ {[%emt 0:00:20] D20: Queen's Gambit Accepted: 3 e3 and 3 e4.} Qe7 {[%emt 0:00:13]} 8. Qxe7+ {[%emt 0:00:05]} Bxe7 {[%emt 0:00:08]} 9. O-O {[%emt 0:02:16] White has an edge.} O-O {[%emt 0:00:08]} 10. Re1 {[%emt 0:01:47]} Bd6 {[%emt 0:10:05]} 11. Nc3 {[%emt 0:00:05]} h6 {[%emt 0:12:23]} 12. Nb5 {[%emt 0:04:36]} Nbd7 {[%emt 0:00:38] [#]} 13. b3 $146 {[%emt 0:21:10]} ({Predecessor:} 13. Nxd6 cxd6 14. Nh4 Nb6 15. Bd3 Nfd5 16. Bd2 Be6 17. Nf5 Rfd8 18. Rac1 Rac8 19. Rxc8 Nxc8 {½-½ (49) Hinz,H (2308)-Ilzig,G (2308) ICCF email 2019}) 13... Nb6 {[%emt 0:05:32]} 14. Nxd6 {[%emt 0:00:07]} cxd6 {[%emt 0:00:06]} 15. Ba3 {[%emt 0:00:04]} Rd8 {[%emt 0:01:42]} 16. Rac1 {[%emt 0:00:22]} Nxc4 {[%emt 0:13:08]} 17. bxc4 {[%emt 0:00:22]} ({Much worse is} 17. Rxc4 a5 $15) 17... b5 {[%emt 0:05:54]} 18. cxb5 {[%emt 0:01:32]} Be6 {[%emt 0:01:21]} 19. Re2 {[%emt 0:10:49]} Rab8 {[%emt 0:01:29]} 20. Rb2 {[%emt 0:00:48]} Rd7 {[%emt 0:08:12]} 21. h3 {[%emt 0:11:31]} Kh7 {[%emt 0:06:11]} 22. Rc6 {[%emt 0:18:21][%cal Bc1c6,Bc6a6,Ba6a5][%mdl 32]} Ne8 {[%emt 0:00:56]} 23. Nd2 {[%emt 0:04:50]} Bd5 {[%emt 0:02:16]} (23... Rdb7 $11 {keeps the balance.}) 24. Ra6 $16 {[%emt 0:01:52]} Rbb7 {[%emt 0:02:53]} 25. Ra5 {[%emt 0:04:17]} Nc7 {[%emt 0:01:46]} 26. Nb1 {[%emt 0:00:48]} Be6 {[%emt 0:02:43]} 27. Nc3 {[%emt 0:01:42]} Nd5 {[%emt 0:01:26]} 28. Nxd5 {[%emt 0:07:23]} Bxd5 {[%emt 0:00:05]} 29. Rc2 {[%emt 0:01:33] Inhibits Bc4.} Rb6 {[%emt 0:00:55]} 30. Bb4 {[%emt 0:00:38]} Kg6 {[%emt 0:04:24]} 31. a4 {[%emt 0:01:10]} f6 {[%emt 0:00:52]} 32. f3 {[%emt 0:02:15]} Kf7 {[%emt 0:00:02]} 33. Kf2 {[%emt 0:00:46]} Ke7 {[%emt 0:00:09]} 34. Rc8 {[%emt 0:01:25]} Kf7 {[%emt 0:01:12]} 35. h4 {[%emt 0:00:11]} Kg6 {[%emt 0:01:03]} 36. Kg3 {[%emt 0:01:05]} Kf5 {[%emt 0:01:17]} 37. Re8 {[%emt 0:01:12]} Kg6 {[%emt 0:00:31]} 38. Ba3 {[%emt 0:00:28]} Kf7 {[%emt 0:00:24]} 39. Rc8 {[%emt 0:00:05] White is more active.} Kg6 {[%emt 0:00:26]} 40. Kf4 {[%emt 0:00:09]} Kh5 {[%emt 0:01:46]} 41. Kg3 {[%emt 0:00:15]} ({White should play} 41. Bb4 $16) 41... g5 {[%emt 0:00:47]} (41... Kg6 $1 $11) 42. hxg5 {[%emt 0:01:32]} hxg5 {[%emt 0:00:05]} 43. Rf8 {[%emt 0:00:43]} Kg6 {[%emt 0:00:15]} 44. Kf2 {[%emt 0:00:22]} Kg7 {[%emt 0:01:23]} 45. Re8 {[%emt 0:00:09]} Kf7 {[%emt 0:00:12]} 46. Rh8 {[%emt 0:00:04]} Kg7 {[%emt 0:00:14] Prevents Rh7+.} 47. Rc8 {[%emt 0:00:04]} Kf7 {[%emt 0:00:13]} 48. Rc1 {[%emt 0:01:57]} Re7 {[%emt 0:01:06]} 49. Rh1 {[%emt 0:00:42] Black must now prevent Rh7+.} Kg6 {[%emt 0:01:14] Prevents Rh7.} 50. Re1 {[%emt 0:00:07]} Rd7 {[%emt 0:00:16]} 51. Kg3 {[%emt 0:00:17]} ({White should try} 51. Rc1 $16) 51... Kf7 {[%emt 0:00:35]} (51... f5 $14 {was preferrable.}) 52. Rc1 {[%emt 0:00:42]} Kg6 {[%emt 0:00:23]} 53. Rc8 {[%emt 0:00:12]} (53. Bb4 $16) 53... Kf5 {[%emt 0:00:37] [#]} (53... Kh5 $1 $11) 54. Bc5 $1 {[%emt 0:01:42]} Rbb7 {[%emt 0:02:56]} (54... dxc5 $2 55. dxc5 Re6 56. c6 $18) 55. b6 {[%emt 0:00:31]} dxc5 $11 {[%emt 0:01:41] The position is equal.} 56. Rcxc5 {[%emt 0:00:11]} axb6 {[%emt 0:00:23]} 57. Rxd5+ {[%emt 0:00:03]} Kg6 $1 {[%emt 0:00:07]} 58. Rab5 {[%emt 0:01:06]} Rxd5 {[%emt 0:00:03]} 59. Rxd5 {[%emt 0:00:04]} Ra7 {[%emt 0:00:01]} 60. Rb5 {[%emt 0:00:47] Weighted Error Value: White=0.11 (very precise) /Black=0.15 (very precise)} 1/2-1/2

[Event "15th Tashkent Open Agzamov 2022"]
[Site "Tashkent"]
[Date "2022.05.07"]
[Round "5.9"]
[White "Manafov, Vugar"]
[Black "Muradli, Mahammad"]
[Result "0-1"]
[ECO "D37"]
[WhiteElo "2311"]
[BlackElo "2539"]
[Annotator "TA"]
[PlyCount "104"]
[EventDate "2022.05.05"]
[EventType "swiss"]
[EventCountry "UZB"]
[SourceTitle "playchess.com"]
[Source "ChessBase"]
[SourceQuality "1"]
[TimeControl "5400+30"]

{[%evp 21,104,-19,-22,-24,-26,-15,-19,-31,-21,-29,-28,-27,-6,-34,0,-12,0,0,0,0,0,0,0,-7,0,-10,0,-10,-21,-10,0,-27,0,-32,-32,-32,-33,-37,0,0,0,0,0,0,0,0,0,0,0,0,20,0,0,0,0,0,0,0,0,0,0,0,0,-157,-155,-389,-360,-305,-290,-280,-248,-622,-610,-762,-660,-1022,-693,-758,-720,-29973,-29975,-29984,-29982,-29985,-29985]} 1. d4 {[%emt 0:02:13]} Nf6 {[%emt 0:03:39]} 2. Nf3 {[%emt 0:00:21]} e6 {[%emt 0:00:12]} 3. c4 {[%emt 0:01:20]} d5 {[%emt 0:00:07]} 4. Nc3 {[%emt 0:00:13]} dxc4 {[%emt 0:00:07]} 5. e3 {[%emt 0:00:45]} a6 {[%emt 0:00:07]} 6. Bxc4 {[%emt 0:01:55]} b5 {[%emt 0:00:06]} 7. Bd3 {[%emt 0:00:02]} Bb7 {[%emt 0:00:13]} 8. a3 {[%emt 0:06:29]} c5 {[%emt 0:01:00]} 9. dxc5 {[%emt 0:00:38]} Bxc5 {[%emt 0:00:08]} 10. O-O {[%emt 0:01:23]} O-O {[%emt 0:03:24]} 11. e4 {[%emt 0:05:19]} Nbd7 {[%emt 0:02:39]} 12. Bf4 {[%emt 0:06:46] [#] D37: Queen's Gambit Declined: 5 Bf4.} h6 $146 {[%emt 0:09:46]} ({Predecessor:} 12... Nh5 13. Bg5 Be7 14. Be3 Nc5 15. Bc2 Rc8 16. Nd4 Nf6 17. f3 g6 18. Qe2 e5 19. Nb3 Na4 20. Nxa4 bxa4 {½-½ (34) Braun,T (1908)-Kraujunas,V (2009) ICCF email 2015}) 13. h3 {[%emt 0:00:59]} Re8 {[%emt 0:03:09]} 14. e5 {[%emt 0:02:11] The position is equal.} Nd5 {[%emt 0:00:53]} 15. Nxd5 {[%emt 0:02:20]} Bxd5 {[%emt 0:00:25]} 16. Qe2 {[%emt 0:04:30]} Qb6 {[%emt 0:10:36]} 17. a4 {[%emt 0:15:33]} b4 {[%emt 0:10:02]} 18. Nd2 {[%emt 0:10:51]} Bd4 {[%emt 0:02:48]} 19. Nc4 {[%emt 0:00:29]} Bxc4 {[%emt 0:01:41]} 20. Bxc4 {[%emt 0:00:07]} a5 {[%emt 0:06:11]} 21. Rad1 {[%emt 0:05:31]} Red8 {[%emt 0:00:52]} 22. Rd3 {[%emt 0:04:29]} Nf8 {[%emt 0:06:24][%cal Bd7f8,Bf8g6,Bg6h4,Bh4f5,Bf5d4][%mdl 32]} 23. Rfd1 {[%emt 0:09:27] [#] And now Qd2 would win.} Ng6 {[%emt 0:01:01]} 24. Bh2 {[%emt 0:03:30] Hoping for Qd2. A strong pair of Bishops.} Bc5 {[%emt 0:02:35]} 25. Qf3 $1 {[%emt 0:01:52]} Nh4 {[%emt 0:05:31]} 26. Qf4 {[%emt 0:00:12]} Nf5 {[%emt 0:00:23]} 27. b3 {[%emt 0:02:05]} Rxd3 {[%emt 0:02:00]} 28. Rxd3 {[%emt 0:00:06]} Rd8 {[%emt 0:00:06]} 29. g4 {[%emt 0:02:17]} Rxd3 {[%emt 0:00:16]} (29... g5 $5 30. Qf3 Nh4 $15) 30. Bxd3 {[%emt 0:00:03]} Nd4 {[%emt 0:00:07]} 31. Qe4 {[%emt 0:00:04]} g6 {[%emt 0:11:36]} 32. Bc4 {[%emt 0:00:42]} Kg7 {[%emt 0:01:38]} 33. Kg2 {[%emt 0:00:27]} Nc6 {[%emt 0:02:15]} 34. Bg3 {[%emt 0:00:31]} Bd4 {[%emt 0:00:33]} 35. Bb5 {[%emt 0:05:12]} Ne7 {[%emt 0:00:15]} (35... Na7 $5 {[%cal Ra7b5]} 36. Bd3 Qc5 $14) 36. Qf3 {[%emt 0:00:13]} Nd5 {[%emt 0:04:06] Against Qf6+} 37. Bc4 {[%emt 0:02:03]} Nc3 {[%emt 0:00:01]} 38. h4 {[%emt 0:02:09] Threatens to win with h5.} Qd8 {[%emt 0:05:32]} 39. Kh3 {[%emt 0:02:28]} Bb6 {[%emt 0:00:35]} 40. h5 {[%emt 0:00:38]} g5 {[%emt 0:00:27]} 41. Kg2 {[%emt 0:00:35]} Nb1 {[%emt 0:01:21] aiming for ...Nd2.} 42. Qd3 {[%emt 0:01:04]} (42. Qc6 $11) 42... Nd2 $17 {[%emt 0:00:15]} 43. Qe2 {[%emt 0:01:19] Loses the game.} (43. Qxd8 $17 Bxd8 44. Bb5) 43... Qd4 $19 {[%emt 0:00:12]} 44. Bd3 {[%emt 0:00:12]} Qd5+ {[%emt 0:01:03]} ({Not} 44... Nxb3 $2 45. Bb1 $19) 45. f3 {[%emt 0:00:55]} Nxb3 {[%emt 0:00:02] Strongly threatening ...Nc1.} 46. Be4 $2 {[%emt 0:00:27]} (46. Bc4 Qd2 47. Qxd2 Nxd2 48. Bd3) 46... Qd4 {[%emt 0:00:20] White must now prevent ...Qg1+.} 47. Bh2 {[%emt 0:00:34] Against Qg1+} Qd2 {[%emt 0:01:04]} 48. Kf1 {[%emt 0:00:12]} Qc1+ {[%emt 0:00:14]} 49. Kg2 {[%emt 0:00:04]} Nd4 {[%emt 0:00:15]} 50. Qa6 {[%emt 0:00:13]} Qd2+ {[%emt 0:01:32] Black mates.} 51. Kh1 {[%emt 0:00:46]} Qe1+ {[%emt 0:00:58]} 52. Bg1 {[%emt 0:00:10] [#]} Nxf3 $1 {[%emt 0:00:08][%mdl 512] Weighted Error Value: White=0.50/Black=0.06 (flawless)} 0-1

[Event "15th Tashkent Open Agzamov 2022"]
[Site "Tashkent"]
[Date "2022.05.07"]
[Round "5.10"]
[White "Madaminov, Mukhiddin"]
[Black "Khusnutdinov, Rustam"]
[Result "1-0"]
[ECO "E41"]
[WhiteElo "2308"]
[BlackElo "2472"]
[Annotator "TA"]
[PlyCount "69"]
[EventDate "2022.05.05"]
[EventType "swiss"]
[EventCountry "UZB"]
[SourceTitle "playchess.com"]
[Source "ChessBase"]
[SourceQuality "1"]
[TimeControl "5400+30"]

{[%evp 15,69,2,30,-2,36,29,46,11,11,12,25,10,19,0,13,0,0,0,0,0,15,0,26,-7,-22,-27,-16,-18,-19,-25,0,0,0,0,0,0,265,251,251,227,299,290,292,292,260,239,225,227,382,373,485,483,649,612,598,522]} 1. d4 {[%emt 0:01:05]} Nf6 {[%emt 0:00:29]} 2. c4 {[%emt 0:00:45]} e6 {[%emt 0:00:35]} 3. Nc3 {[%emt 0:01:00]} Bb4 {[%emt 0:00:21]} 4. e3 {[%emt 0:00:40]} Bxc3+ {[%emt 0:06:22]} 5. bxc3 {[%emt 0:00:55]} d6 {[%emt 0:00:15]} 6. Bd3 {[%emt 0:07:10]} c5 {[%emt 0:00:57]} 7. Ne2 {[%emt 0:03:45]} Nc6 {[%emt 0:00:33]} 8. O-O {[%emt 0:04:53]} O-O {[%emt 0:12:41]} 9. f4 {[%emt 0:23:52] [#] E41: Nimzo-Indian: Rubinstein: 4...c5 5 Bd3, including Hübner Variation.} cxd4 $146 {[%emt 0:09:45]} ({Predecessor:} 9... e5 10. Ng3 exd4 11. cxd4 cxd4 12. exd4 d5 13. c5 b6 14. Bb5 Bd7 15. f5 h6 16. Bf4 bxc5 17. dxc5 {½-½ (27) Green,P (2166)-Deneuville,C (2229) ICCF email 2018}) 10. cxd4 {[%emt 0:00:47]} d5 {[%emt 0:00:02] Inhibits e4.} 11. Rb1 {[%emt 0:08:13] Prevents Nb4. White is slightly better.} dxc4 {[%emt 0:08:33]} 12. Bxc4 {[%emt 0:00:30]} b6 $1 {[%emt 0:00:02]} 13. Ng3 {[%emt 0:02:05]} Bb7 {[%emt 0:00:46]} 14. Bb2 {[%emt 0:02:05]} Rc8 {[%emt 0:03:49]} 15. Rc1 {[%emt 0:16:40]} Na5 {[%emt 0:11:01]} 16. Bd3 {[%emt 0:00:24]} Rxc1 {[%emt 0:00:09]} (16... Qd5 {keeps more tension.} 17. Qe2 Rxc1 18. Rxc1 Rc8) 17. Bxc1 {[%emt 0:10:06]} Nc6 {[%emt 0:20:01][%cal Ba5c6,Bc6e7,Be7f5][%mdl 32]} 18. Qe2 {[%emt 0:04:02]} Qd7 {[%emt 0:04:14]} 19. a3 {[%emt 0:01:33]} Ne7 {[%emt 0:04:45]} 20. Bb2 {[%emt 0:07:40]} Nf5 $1 {[%emt 0:00:26]} 21. Nh5 {[%emt 0:00:25]} Nxh5 {[%emt 0:08:20]} 22. Qxh5 {[%emt 0:00:05]} ({But not} 22. Bxf5 exf5 23. Qxh5 Qb5 $17) 22... Qd5 {[%emt 0:00:10][%csl Gb7][%cal Rd5g2]} 23. e4 {[%emt 0:00:48]} Qb3 {[%emt 0:00:03]} 24. Qe2 {[%emt 0:00:08]} Nd6 {[%emt 0:00:03]} 25. Rf3 {[%emt 0:01:07] Black must now prevent Rg3.} f5 $2 {[%emt 0:04:12][%mdl 8192] [#]} (25... Qa2 $11) 26. Rg3 $1 $18 {[%emt 0:00:45]} fxe4 {[%emt 0:01:00] [#]} 27. Bxe4 {[%emt 0:00:08][%mdl 512]} Qxg3 {[%emt 0:01:05] [#]} (27... Qc4 28. Bxh7+) 28. Bxh7+ $1 {[%emt 0:00:48][%mdl 512]} Kxh7 {[%emt 0:00:03]} 29. hxg3 {[%emt 0:00:34][%cal Bh2g3,Bg3g4][%mdl 32] Dancing on a razor blade.} Bd5 {[%emt 0:00:03]} 30. Qc2+ {[%emt 0:00:56]} Kg8 {[%emt 0:00:05]} 31. Qc7 {[%emt 0:00:10][%csl LRa7,LRd6]} Nc4 {[%emt 0:00:03]} (31... Ne8 32. Qxa7 Nf6) 32. Bc1 {[%emt 0:00:17]} a5 {[%emt 0:01:20]} 33. g4 {[%emt 0:00:24] White is clearly winning.} g6 {[%emt 0:01:11]} 34. a4 {[%emt 0:00:31]} Rf7 {[%emt 0:00:40]} 35. Qd8+ {[%emt 0:00:01] Weighted Error Value: White=0.08 (flawless) /Black=0.38} 1-0